bitfinex/quotes_ETHUSD_20250620
["timestamp","ask_amount","ask_price","bid_price","bid_amount"]
[1750416883784,1.98456516,2554.5,2554.4,5.38581365]
[1750416884282,1.98456784,2554.5,2554.4,5.38581365]
[1750416884466,1.618,2554.5,2554.4,5.38581365]
[1750416884676,1.98454328,2554.5,2554.4,5.38581365]
[1750416885482,1.618,2554.5,2554.4,5.38581365]
[1750416885653,1.98450882,2554.5,2554.4,5.38581365]
[1750416885989,1.98450747,2554.5,2554.4,5.38581365]
[1750416886362,1.98448365,2554.5,2554.4,5.38581365]
[1750416888490,0.36648365,2554.5,2554.4,6.3158904]
[1750416888892,0.36648365,2554.7,2554.6,3.91450716]
[1750416889191,0.36644038,2554.7,2554.6,3.91450716]
[1750416890068,0.36632893,2554.7,2554.6,3.91450716]
[1750416890575,12.443588,2554.8,2554.6,3.91450716]
[1750416890790,0.36632891,2554.7,2554.6,3.91450716]
[1750416891185,0.36632891,2554.7,2554.6,4.74670716]
[1750416891765,2.443588,2554.8,2554.7,3.91435393]
[1750416892093,2.443588,2554.8,2554.7,4.74655393]
[1750416892094,2.80995882,2554.8,2554.7,4.74655393]
[1750416893075,2.80995882,2554.8,2554.7,4.78569343]
[1750416893281,2.443588,2554.8,2554.7,4.78569343]
[1750416893607,2.443588,2554.8,2554.7,6.10131881]
[1750416896109,2.443588,2554.8,2554.7,6.14045815]
[1750416897311,2.443588,2554.8,2554.7,6.10131881]
[1750416900708,2.443588,2554.8,2554.7,6.14045714]
[1750416900912,2.443588,2554.8,2554.7,6.10131881]
[1750416902100,2.443588,2554.8,2554.7,6.14045615]
[1750416902301,1.62,2556.0,2555.4,0.7712]
[1750416902501,1.62,2556.0,2555.8,3.9125968]
[1750416902502,0.58579458,2555.9,2555.8,3.9125968]
[1750416902701,0.36611526,2555.9,2555.8,3.9125968]
[1750416903019,0.36610738,2555.9,2555.8,3.9125968]
[1750416903194,11.62,2556.0,2555.8,3.9125968]
[1750416903394,0.36610545,2555.9,2555.8,3.91258335]
[1750416904724,1.62,2556.0,2555.9,3.91251613]
[1750416904925,1.98607601,2556.0,2555.9,3.91251613]
[1750416905128,1.98603565,2556.0,2555.9,3.91251613]
[1750416905741,1.98603565,2556.0,2555.5,3.91312854]
[1750416905889,7.1038967,2555.9,2555.2,0.7523]
[1750416906224,0.36607645,2555.8,2555.6,3.91286374]
[1750416906401,0.36607502,2555.7,2555.6,3.91286374]
[1750416906602,0.36607502,2555.8,2555.6,3.91286374]
[1750416906816,0.36607935,2555.7,2555.6,3.91286374]
[1750416907498,0.36608208,2555.8,2555.6,3.91286374]
[1750416907704,0.36608208,2555.7,2555.6,3.91286374]
[1750416908100,0.36608208,2555.8,2555.7,3.91282231]
[1750416908318,0.36608175,2555.8,2555.7,3.91282231]
[1750416909460,0.36608175,2555.9,2555.8,3.91266922]
[1750416910338,0.36602901,2555.9,2555.8,3.91266922]
[1750416911206,7.946,2556.0,2555.9,3.91251613]
[1750416911405,8.31200997,2556.0,2555.9,3.91251613]
[1750416912542,8.31197023,2556.0,2555.9,3.91251613]
[1750416913143,8.31197023,2556.0,2555.8,3.91256405]
[1750416913303,0.36597635,2555.9,2555.8,3.91256405]
[1750416913702,0.36597635,2555.9,2555.7,3.9127653]
[1750416913934,0.36597635,2555.8,2555.7,3.9127653]
[1750416914140,0.36598819,2555.9,2555.7,3.9127653]
[1750416914340,1.98497378,2555.9,2555.8,3.91266922]
[1750416914502,1.619,2555.9,2555.8,3.91266922]
[1750416914707,1.98497566,2555.9,2555.8,3.91266922]
[1750416914911,1.98502517,2555.9,2555.8,3.91266922]
[1750416915153,1.98502541,2555.9,2555.8,3.91266922]
[1750416916135,1.98503053,2555.9,2555.7,3.9127297]
[1750416916336,0.36603053,2555.8,2555.7,3.7235012]
[1750416916742,1.619,2555.9,2555.7,3.7235012]
[1750416917087,0.36602943,2555.8,2555.7,3.7235012]
[1750416919094,0.36641783,2555.8,2555.7,3.7235012]
[1750416920371,1.619,2555.9,2555.8,3.91266922]
[1750416920682,1.98604574,2555.9,2555.8,4.67076922]
[1750416920891,0.36703008,2555.9,2555.8,4.67076922]
[1750416921090,0.36703008,2555.9,2555.8,4.70989291]
[1750416921581,1.619,2556.2,2556.1,3.91221]
[1750416922471,11.619,2556.2,2555.7,1.570653]
[1750416922672,11.619,2556.2,2555.9,3.91245064]
[1750416922975,0.6,2556.1,2555.9,3.91245064]
[1750416923475,1.619,2556.2,2555.9,3.91245064]
[1750416925780,10.0,2556.1,2555.9,3.91245064]
[1750416926279,0.5872977,2556.0,2555.9,3.91245064]
[1750416926575,0.58729742,2556.0,2555.9,3.91245064]
[1750416926783,0.36705925,2556.0,2555.9,3.91245064]
[1750416926950,0.36654036,2556.0,2555.9,3.91245064]
[1750416927673,10.0,2556.1,2555.9,3.91245064]
[1750416927870,0.36653471,2556.0,2555.9,3.91245064]
[1750416928064,0.6,2556.0,2555.9,3.91245064]
[1750416928272,0.96653458,2556.0,2555.9,3.91245064]
[1750416928468,0.96653761,2556.0,2555.9,3.91245064]
[1750416928672,0.96653761,2556.0,2555.3,6.73786105]
[1750416928673,3.91268064,2555.8,2555.3,0.8219]
[1750416928967,7.55076105,2555.6,2555.2,3.91350909]
[1750416929172,0.36658741,2555.5,2555.2,3.91350909]
[1750416929386,0.36658741,2555.4,2555.1,3.91365122]
[1750416929573,0.36658741,2555.3,2555.2,3.9135701]
[1750416929771,6.329,2555.4,2555.2,3.9135701]
[1750416931886,6.329,2555.4,2555.3,3.91343482]
[1750416934950,0.8129,2555.6,2555.4,3.91317628]
[1750416935151,7.945,2555.5,2555.4,3.91317628]
[1750416936897,1.618,2555.5,2555.4,3.91317628]
[1750416942009,1.98394672,2555.5,2555.4,3.91317628]
[1750416942164,1.98394861,2555.5,2555.4,3.91317628]
[1750416942560,1.618,2555.5,2555.4,3.91317628]
[1750416942859,1.98394677,2555.5,2555.4,3.91317628]
[1750416943366,2.58394789,2555.5,2555.4,3.91317628]
[1750416945261,2.218,2555.5,2555.4,3.91317628]
[1750416945461,2.58401125,2555.5,2555.4,3.91317628]
[1750416946299,2.58401301,2555.5,2555.4,3.91317628]
[1750416946811,2.58401468,2555.5,2555.4,3.91317628]
[1750416946991,2.218,2555.5,2555.4,3.91317628]
[1750416947178,2.58401382,2555.5,2555.4,3.91317628]
[1750416947383,2.58401381,2555.5,2555.4,3.91317628]
[1750416947896,2.58401383,2555.5,2555.4,3.91317628]
[1750416948210,2.5840134,2555.5,2555.4,3.91317628]
[1750416948872,2.58406643,2555.5,2555.4,3.91317628]
[1750416949166,2.5840581,2555.5,2555.4,3.91317628]
[1750416949367,2.218,2555.5,2555.4,3.91317628]
[1750416949614,2.5840581,2555.5,2555.4,3.91317628]
[1750416950190,2.58406222,2555.5,2555.4,3.91317628]
[1750416950483,2.218,2555.5,2555.4,3.91317628]
[1750416950688,2.5840622,2555.5,2555.4,3.91317628]
[1750416951276,2.58405601,2555.5,2555.4,3.91317628]
[1750416951772,2.218,2555.5,2555.4,3.91317628]
[1750416951977,2.58444044,2555.5,2555.4,3.91317628]
[1750416952410,2.218,2555.5,2555.4,3.91317628]
[1750416952709,2.58443918,2555.5,2555.4,3.91317628]
[1750416952876,2.58443831,2555.5,2555.4,3.91317628]
[1750416953413,2.218,2555.5,2555.4,3.91317628]
[1750416953583,2.58443354,2555.5,2555.4,3.91317628]
[1750416953789,2.58443535,2555.5,2555.4,3.91317628]
[1750416955518,2.58446877,2555.5,2555.4,3.91317628]
[1750416956819,0.96646877,2555.5,2555.4,3.91317628]
[1750416956981,0.96646877,2555.5,2555.4,4.69583415]
[1750416958015,1.33376225,2555.5,2555.4,4.69583415]
[1750416958323,0.96688605,2555.5,2555.4,4.73496325]
[1750416958514,0.96686917,2555.5,2555.4,12.2849243]
[1750416958720,7.942,2555.9,2555.8,3.91266922]
[1750416958889,8.8958109,2555.9,2555.8,3.91266922]
[1750416959221,8.89581041,2555.9,2555.8,3.91266922]
[1750416959420,8.89581265,2555.9,2555.8,3.91266922]
[1750416959921,8.89582514,2555.9,2555.8,3.91266922]
[1750416960444,9.49582514,2555.9,2555.8,3.91266922]
[1750416960583,3.17182514,2555.9,2555.8,3.91266922]
[1750416960780,3.1718202,2555.9,2555.8,3.91266922]
[1750416961022,1.5538308,2555.9,2555.8,3.91266922]
[1750416961322,2.80497193,2555.9,2555.8,4.69521496]
[1750416961529,1.55387982,2555.9,2555.8,4.69521496]
[1750416961688,0.96689112,2555.9,2555.8,4.69521496]
[1750416961887,0.6,2555.9,2555.8,4.69521496]
[1750416962089,0.96687948,2555.9,2555.8,4.69521496]
[1750416962485,0.6,2555.9,2555.8,4.69521496]
[1750416962787,0.96689341,2555.9,2555.8,4.69521496]
[1750416963099,1.33379243,2555.9,2555.8,3.91266922]
[1750416963319,1.55399179,2555.9,2555.8,3.91266922]
[1750416963518,0.96693173,2555.9,2555.8,3.91266922]
[1750416963819,0.6,2555.9,2555.8,3.91266922]
[1750416964029,0.96660227,2555.9,2555.8,3.91266922]
[1750416964329,0.96660226,2555.9,2555.8,3.91266922]
[1750416964740,0.96660727,2555.9,2555.8,3.91266922]
[1750416965423,0.96660718,2555.9,2555.8,3.91266922]
[1750416965811,0.6,2555.9,2555.8,3.91266922]
[1750416966135,0.6,2555.9,2555.7,3.91275686]
[1750416966437,0.36660723,2555.8,2555.7,3.91275686]
[1750416966837,0.36660723,2555.8,2555.6,3.91288698]
[1750416967143,0.36657523,2555.7,2555.6,3.91288698]
[1750416967324,0.3664835,2555.7,2555.6,3.91288698]
[1750416969043,0.6,2555.9,2555.7,3.91282049]
[1750416969342,0.36648681,2555.8,2555.7,3.91282049]
[1750416969743,0.36648447,2555.8,2555.6,3.91290263]
[1750416969903,0.36648706,2555.7,2555.6,3.91290263]
[1750416970100,0.36649002,2555.7,2555.6,3.91290263]
[1750416970316,0.6,2555.9,2555.6,3.91290263]
[1750416970519,0.3664912,2555.8,2555.7,3.91282231]
[1750416970718,0.36649103,2555.8,2555.7,3.91282231]
[1750416971138,0.3664676,2555.8,2555.7,3.91282231]
[1750416972440,0.36646473,2555.8,2555.7,3.91282231]
[1750416972646,0.6,2555.9,2555.7,3.91282231]
[1750416972833,0.36646379,2555.8,2555.7,3.91282231]
[1750416973410,0.6,2555.9,2555.7,3.91282231]
[1750416973611,0.36646748,2555.8,2555.7,3.91282231]
[1750416974150,0.36646511,2555.8,2555.7,3.91282231]
[1750416974556,0.36646711,2555.8,2555.7,3.91282231]
[1750416975615,0.3664808,2555.8,2555.7,3.91282231]
[1750416975926,0.6,2555.9,2555.7,3.91282231]
[1750416976126,0.36648031,2555.8,2555.7,3.91282231]
[1750416976542,0.6,2555.9,2555.8,3.91266922]
[1750416976870,0.96647459,2555.9,2555.8,3.91266922]
[1750416977149,0.6,2555.9,2555.8,3.91266922]
[1750416977549,7.289472,2555.9,2555.8,3.91266922]
[1750416977758,7.28946825,2555.9,2555.8,3.91266922]
[1750416977938,6.923,2555.9,2555.8,3.91266922]
[1750416978449,7.28945488,2555.9,2555.8,3.91266922]
[1750416978655,7.28945492,2555.9,2555.8,3.91266922]
[1750416979056,7.2894836,2555.9,2555.8,3.91266922]
[1750416979424,6.923,2555.9,2555.8,3.91266922]
[1750416979620,7.2894827,2555.9,2555.8,3.91266922]
[1750416980559,7.28948179,2555.9,2555.8,3.91266922]
[1750416980723,7.28948108,2555.9,2555.8,3.91266922]
[1750416981257,7.28948126,2555.9,2555.8,3.91266922]
[1750416982558,7.28948126,2555.9,2555.7,3.91272646]
[1750416982737,0.36648126,2555.8,2555.7,3.91272646]
[1750416983248,0.36655041,2555.8,2555.7,3.91272646]
[1750416983453,0.36654701,2555.8,2555.7,3.91272646]
[1750416983856,0.36654663,2555.8,2555.7,3.91272646]
[1750416984590,0.36654663,2555.8,2555.4,0.7656]
[1750416984766,0.36654663,2555.8,2555.3,3.91336306]
[1750416984767,0.784,2555.6,2555.3,3.91336306]
[1750416985071,8.30671709,2555.5,2555.3,3.91336306]
[1750416985266,0.36671709,2555.4,2555.3,3.91336306]
[1750416985427,7.94,2555.5,2555.3,3.91336306]
[1750416985870,0.36672459,2555.4,2555.3,3.91336306]
[1750416986178,0.36672441,2555.4,2555.3,3.91336306]
[1750416986332,7.94,2555.5,2555.3,3.91336306]
[1750416986533,0.36672321,2555.4,2555.3,3.91336306]
[1750416986766,0.36672328,2555.4,2555.3,3.91336306]
[1750416987275,0.36672324,2555.4,2555.3,3.91336306]
[1750416987571,7.94,2555.5,2555.3,3.91336306]
[1750416987758,0.3667242,2555.4,2555.3,3.91336306]
[1750416988066,0.36698255,2555.4,2555.3,3.91336306]
[1750416988270,7.94,2555.5,2555.3,3.91336306]
[1750416988566,0.36664702,2555.4,2555.3,3.91336306]
[1750416988770,7.94,2555.5,2555.3,3.91336306]
[1750416988971,7.94,2555.5,2555.4,3.91328167]
[1750416989167,1.98464699,2555.5,2555.4,3.91328167]
[1750416989370,8.30564699,2555.5,2555.4,3.91328167]
[1750416989589,8.30563869,2555.5,2555.4,3.91328167]
[1750416990235,8.30563788,2555.5,2555.4,3.91328167]
[1750416991083,8.30564371,2555.5,2555.4,3.91328167]
[1750416991263,8.30564556,2555.5,2555.4,3.91328167]
[1750416991470,8.30564554,2555.5,2555.4,3.91328167]
[1750416991984,8.30564568,2555.5,2555.4,3.91328167]
[1750416993392,7.939,2555.5,2555.4,3.91328167]
[1750416993771,8.30551753,2555.5,2555.4,3.91328167]
[1750416994091,8.30551751,2555.5,2555.4,3.91328167]
[1750416994972,8.30552178,2555.5,2555.4,3.91328167]
[1750416995224,0.7774,2555.3,2554.8,3.91405204]
[1750416995520,6.68856603,2555.2,2554.7,3.91426364]
[1750416995802,0.36656603,2555.1,2554.7,3.91426364]
[1750416995960,1.617,2555.0,2554.8,3.91419749]
[1750416998797,1.617,2555.0,2554.9,3.91404751]
[1750416999116,4.70390552,2555.5,2555.0,3.91382331]
[1750416999323,8.30674476,2555.4,2555.0,3.91382331]
[1750416999485,0.36574476,2555.3,2555.0,3.91382331]
[1750416999690,7.941,2555.4,2555.0,3.91382331]
[1750416999894,0.36574478,2555.3,2555.0,3.91382331]
[1750417000776,4.27919092,2555.3,2554.9,3.91396921]
[1750417000976,0.36574385,2555.2,2554.9,3.91396921]
[1750417001190,6.323,2555.1,2554.9,3.91396921]
[1750417002730,0.6,2555.0,2554.9,3.91396921]
[1750417003900,0.6,2555.0,2554.8,4.70522247]
[1750417004221,0.6,2555.0,2554.8,3.91412247]
[1750417004376,0.6,2555.0,2554.9,3.91404751]
[1750417004975,0.6,2555.0,2554.8,3.91412773]
[1750417005724,0.6,2555.0,2554.9,3.91404751]
[1750417006028,0.6,2555.0,2554.6,0.7997]
[1750417006324,0.6,2555.0,2554.7,3.91425295]
[1750417006495,1.618,2554.9,2554.7,3.91425295]
[1750417008225,1.618,2554.9,2554.8,3.91420072]
[1750417014021,1.618,2555.0,2554.9,3.91397624]
[1750417014886,2.218,2555.0,2554.9,3.91397624]
[1750417016113,0.6,2555.0,2554.9,3.91397624]
[1750417016289,2.218,2555.0,2554.9,3.91397624]
[1750417016914,2.58436865,2555.0,2554.9,3.91397624]
[1750417017936,2.218,2555.0,2554.9,3.91397624]
[1750417018092,2.58443845,2555.0,2554.9,3.91397624]
[1750417019335,2.58443845,2555.0,2554.8,3.91412878]
[1750417019496,0.36643845,2554.9,2554.8,3.91412878]
[1750417020038,2.218,2555.0,2554.9,3.91404751]
[1750417020499,2.58463115,2555.0,2554.9,3.91404751]
[1750417021236,2.218,2555.0,2554.8,4.48075106]
[1750417021405,0.36663823,2554.9,2554.8,3.91413687]
[1750417022147,0.36663823,2554.9,2554.7,3.91428212]
[1750417022443,2.218,2555.0,2554.8,3.91420072]
[1750417022635,0.36709109,2554.9,2554.7,3.91426393]
[1750417022840,2.218,2555.0,2554.7,3.91435393]
[1750417022841,0.36709629,2554.8,2554.7,3.91435393]
[1750417023143,0.36709629,2554.8,2554.7,4.77720062]
[1750417023434,0.3670921,2554.8,2554.7,4.77720062]
[1750417023846,0.36709324,2554.8,2554.7,4.77720062]
[1750417024007,0.36709258,2554.8,2554.7,4.77720062]
[1750417024207,3.0046,2555.0,2554.7,4.77720062]
[1750417024437,0.36709258,2554.9,2554.7,4.77720062]
[1750417024674,2.218,2555.0,2554.8,3.91420072]
[1750417024807,0.36709119,2554.9,2554.8,3.91420072]
[1750417026208,0.36708937,2554.9,2554.8,3.91420072]
[1750417026558,0.36709152,2554.9,2554.8,3.91420072]
[1750417027023,0.36709152,2554.9,2554.7,4.77710791]
[1750417027210,0.36709152,2554.8,2554.7,4.77710791]
[1750417028337,0.36709098,2554.8,2554.7,4.77710791]
[1750417028552,2.218,2555.0,2554.7,4.77710791]
[1750417028762,0.36708982,2554.9,2554.7,3.91426122]
[1750417028927,2.218,2555.0,2554.8,3.9141999]
[1750417029135,0.36708672,2554.9,2554.8,3.9141999]
[1750417029564,0.36708672,2554.9,2554.7,3.91428341]
[1750417029875,0.36708484,2554.8,2554.6,3.9144439]
[1750417030051,0.36708484,2554.7,2554.6,4.84277878]
[1750417030255,0.36708987,2554.7,2554.6,4.84277878]
[1750417030456,0.36708987,2554.7,2554.5,3.91466004]
[1750417030662,0.36708987,2554.6,2554.5,3.91466004]
[1750417030853,0.36708987,2554.6,2554.4,5.36902128]
[1750417031163,4.73902782,2554.9,2554.5,3.91463726]
[1750417031330,0.36697978,2554.8,2554.5,3.91464948]
[1750417031537,0.36697752,2554.7,2554.6,3.9144987]
[1750417032247,0.8249,2554.9,2554.6,3.9144987]
[1750417032571,0.36697707,2554.8,2554.6,3.9144987]
[1750417032734,0.36697707,2554.7,2554.4,0.6667]
[1750417032932,0.36697707,2554.6,2554.4,4.58145246]
[1750417033128,6.322,2554.7,2554.4,4.58145246]
[1750417033446,0.36699869,2554.6,2554.4,4.58145246]
[1750417033627,0.36699869,2554.5,2554.4,4.58145246]
[1750417033830,0.36699869,2554.5,2554.4,5.51200353]
[1750417034069,6.322,2554.7,2554.5,3.91464338]
[1750417034268,0.36699913,2554.6,2554.5,3.91464338]
[1750417034835,0.36685994,2554.6,2554.5,3.91464338]
[1750417035035,0.36686382,2554.6,2554.5,3.91464338]
[1750417035240,0.36686382,2554.6,2554.5,4.47684546]
[1750417035629,0.36686382,2554.6,2554.5,4.47686248]
[1750417035831,0.36686382,2554.6,2554.5,3.9146604]
[1750417036063,0.36686382,2554.6,2554.4,5.51197251]
[1750417036266,0.36686243,2554.5,2554.4,5.51197251]
[1750417037370,0.36686243,2554.5,2554.4,0.6667]
[1750417037665,0.36685355,2554.5,2554.4,0.6667]
[1750417038073,0.36686088,2554.5,2554.4,0.6667]
[1750417038449,0.36668894,2554.5,2554.4,0.6667]
[1750417039465,3.66774773,2554.6,2554.4,0.6667]
[1750417039634,0.36668764,2554.5,2554.4,0.6667]
[1750417040270,0.36666678,2554.5,2554.4,0.6667]
[1750417040462,0.36666811,2554.5,2554.4,0.6667]
[1750417040661,4.28132851,2554.5,2554.4,0.6667]
[1750417040852,0.3666761,2554.5,2554.4,0.6667]
[1750417043156,0.36645262,2554.5,2554.4,0.6667]
[1750417043487,0.36645268,2554.5,2554.4,0.6667]
[1750417043846,4.28109493,2554.5,2554.4,0.6667]
[1750417044047,5.71186631,2554.5,2554.4,0.6667]
[1750417044258,1.79720627,2554.5,2554.4,0.6667]
[1750417044462,6.68843903,2554.5,2554.4,0.6667]
[1750417045480,6.6884115,2554.5,2554.4,0.6667]
[1750417045690,6.322,2554.5,2554.4,0.6667]
[1750417045839,6.6883902,2554.5,2554.4,0.6667]
[1750417046278,6.322,2554.5,2554.4,0.6667]
[1750417046583,6.68826964,2554.5,2554.4,0.6667]
[1750417047081,6.322,2554.5,2554.4,0.6667]
[1750417047383,7.28826937,2554.5,2554.4,0.6667]
[1750417047581,6.922,2554.5,2554.4,0.6667]
[1750417047747,7.28826962,2554.5,2554.4,0.6667]
[1750417048184,7.28827691,2554.5,2554.4,0.6667]
[1750417049387,7.28829206,2554.5,2554.4,0.6667]
[1750417050462,7.28825663,2554.5,2554.4,0.6667]
[1750417051185,6.922,2554.5,2554.4,0.6667]
[1750417051411,7.2882569,2554.5,2554.4,0.6667]
[1750417051687,11.2029173,2554.5,2554.4,0.6667]
[1750417051890,11.20296301,2554.5,2554.4,0.6667]
[1750417052358,11.20296492,2554.5,2554.4,0.6667]
[1750417052560,7.28830455,2554.5,2554.4,0.6667]
[1750417052874,6.922,2554.5,2554.4,0.6667]
[1750417053091,7.28830477,2554.5,2554.4,0.6667]
[1750417054726,7.28840283,2554.5,2554.4,0.6667]
[1750417055871,7.28840103,2554.5,2554.4,0.6667]
[1750417057077,0.96640464,2554.5,2554.4,5.36081365]
[1750417057278,7.28740464,2554.5,2554.4,5.90080979]
[1750417057481,7.28761019,2554.5,2554.4,1.98599614]
[1750417057677,7.28761182,2554.5,2554.4,1.446]
[1750417058214,7.28761351,2554.5,2554.4,0.6667]
[1750417058514,7.28768625,2554.5,2554.4,0.6667]
[1750417058688,7.28768444,2554.5,2554.4,0.6667]
[1750417059011,7.28768854,2554.5,2554.4,0.6667]
[1750417059410,7.28768836,2554.5,2554.4,0.6667]
[1750417061116,7.2876893,2554.5,2554.4,0.6667]
[1750417062026,11.2023497,2554.5,2554.4,0.6667]
[1750417062184,9.04402118,2554.5,2554.4,0.6667]
[1750417062526,0.9668545,2554.5,2554.4,0.6667]
[1750417062674,8.90384953,2554.5,2554.4,0.6667]
[1750417063126,8.9038481,2554.5,2554.4,0.6667]
[1750417063331,8.90384847,2554.5,2554.4,0.6667]
[1750417063975,8.537,2554.5,2554.4,0.6667]
[1750417064181,8.90384649,2554.5,2554.4,0.6667]
[1750417064678,0.96684649,2554.5,2554.4,4.58151365]
[1750417064922,0.96684649,2554.5,2554.4,6.19685735]
[1750417065477,0.36684649,2554.5,2554.4,6.19685735]
[1750417065917,0.36685099,2554.5,2554.4,6.19685735]
[1750417066129,0.36685315,2554.5,2554.4,6.19685735]
[1750417066732,0.36685386,2554.5,2554.4,6.19685735]
[1750417067635,0.36686213,2554.5,2554.4,6.19685735]
[1750417068116,0.36686213,2554.5,2554.4,1.4324]
[1750417068320,3.66774773,2554.6,2554.4,1.4324]
[1750417068521,0.36686587,2554.5,2554.4,1.4324]
[1750417068914,0.36686489,2554.5,2554.4,1.4324]
[1750417069631,3.66774773,2554.6,2554.4,1.4324]
[1750417069811,0.36684186,2554.5,2554.4,1.4324]
[1750417070013,0.36684195,2554.5,2554.4,1.4324]
[1750417070312,0.3668449,2554.5,2554.4,1.4324]
[1750417070512,0.36684593,2554.5,2554.4,1.4324]
[1750417071431,0.36684593,2554.5,2554.4,0.6667]
[1750417071628,0.36685369,2554.5,2554.4,0.6667]
[1750417071809,0.36685368,2554.5,2554.4,0.6667]
[1750417072630,0.36681862,2554.5,2554.4,0.6667]
[1750417073635,0.36683118,2554.5,2554.4,0.6667]
[1750417073930,0.36683114,2554.5,2554.4,0.6667]
[1750417074117,3.66774773,2554.6,2554.4,0.6667]
[1750417074319,0.36682916,2554.5,2554.4,0.6667]
[1750417074519,3.66774773,2554.6,2554.4,0.6667]
[1750417074724,0.36683566,2554.5,2554.4,0.6667]
[1750417075237,0.36683552,2554.5,2554.4,0.6667]
[1750417075639,0.366837,2554.5,2554.4,0.6667]
[1750417076047,0.36683559,2554.5,2554.4,0.6667]
[1750417076842,0.36683524,2554.5,2554.4,0.6667]
[1750417077140,3.66774773,2554.6,2554.4,0.6667]
[1750417077367,0.36686483,2554.5,2554.4,0.6667]
[1750417078034,4.28153088,2554.5,2554.4,0.6667]
[1750417078231,5.46791639,2554.5,2554.4,0.6667]
[1750417078435,1.55325599,2554.5,2554.4,0.6667]
[1750417078629,7.58232698,2554.6,2554.4,0.6667]
[1750417078941,0.36687566,2554.5,2554.4,0.6667]
[1750417079143,0.36687511,2554.5,2554.4,0.6667]
[1750417080142,6.68691547,2554.5,2554.4,0.6667]
[1750417080526,6.6869167,2554.5,2554.4,0.6667]
[1750417081546,6.6869156,2554.5,2554.4,0.6667]
[1750417081729,6.68691533,2554.5,2554.4,0.6667]
[1750417082041,6.32,2554.5,2554.4,0.6667]
[1750417082243,6.68693508,2554.5,2554.4,0.6667]
[1750417083607,6.68693946,2554.5,2554.4,0.6667]
[1750417084951,6.68699765,2554.5,2554.4,0.6667]
[1750417085350,6.68699986,2554.5,2554.4,0.6667]
[1750417086215,0.36699986,2554.5,2554.4,0.6667]
[1750417086420,0.36699265,2554.5,2554.4,0.6667]
[1750417086622,0.96699265,2554.5,2554.4,0.6667]
[1750417086973,0.96698841,2554.5,2554.4,0.6667]
[1750417087113,0.96699106,2554.5,2554.4,0.6667]
[1750417087519,0.6,2554.5,2554.4,0.6667]
[1750417087719,0.96699069,2554.5,2554.4,0.6667]
[1750417087928,0.96698224,2554.5,2554.4,0.6667]
[1750417088120,0.96698224,2554.5,2554.4,1.20305561]
[1750417088323,0.36698224,2554.5,2554.4,1.20305561]
[1750417088571,0.36695867,2554.5,2554.4,1.20305561]
[1750417088735,0.36697616,2554.5,2554.4,1.20305561]
[1750417089068,0.36697616,2554.5,2554.4,0.6667]
[1750417089958,3.66774773,2554.6,2554.4,0.6667]
[1750417090129,0.3669814,2554.5,2554.4,0.6667]
[1750417090630,0.36698298,2554.5,2554.4,0.6667]
[1750417091660,0.96699897,2554.5,2554.4,0.6667]
[1750417092030,0.96703534,2554.5,2554.4,0.6667]
[1750417093171,0.9670437,2554.5,2554.4,0.6667]
[1750417093633,0.96704097,2554.5,2554.4,0.6667]
[1750417094278,0.96704118,2554.5,2554.4,0.6667]
[1750417094792,0.6,2554.5,2554.4,0.6667]
[1750417095070,0.96704385,2554.5,2554.4,0.6667]
[1750417095570,0.96705638,2554.5,2554.4,0.6667]
[1750417096476,0.6,2554.5,2554.4,0.6667]
[1750417096778,0.9670964,2554.5,2554.4,0.6667]
[1750417096940,0.96709448,2554.5,2554.4,0.6667]
[1750417099265,0.96709671,2554.5,2554.4,0.6667]
[1750417099466,0.96711067,2554.5,2554.4,0.6667]
[1750417099801,0.96711067,2554.5,2554.4,4.58151365]
[1750417099940,0.6,2554.5,2554.4,12.67423696]
[1750417100449,0.6,2554.5,2554.4,5.93637591]
[1750417100777,4.48334951,2554.8,2554.5,3.91458083]
[1750417100944,0.3670734,2554.7,2554.6,3.91450403]
[1750417101364,4.48334951,2554.8,2554.6,3.91450716]
[1750417101569,0.36707347,2554.7,2554.6,3.91450716]
[1750417101878,0.36707347,2554.7,2554.6,4.89959547]
[1750417102745,0.36679981,2554.7,2554.6,4.89959547]
[1750417103076,4.48334951,2554.8,2554.6,0.98508831]
[1750417103797,0.3667773,2554.7,2554.6,0.98508831]
[1750417104197,0.36677603,2554.7,2554.6,0.98508831]
[1750417104695,8.39758808,2554.8,2554.4,5.93636814]
[1750417104892,0.36677874,2554.7,2554.4,5.93636814]
[1750417105094,8.39758808,2554.8,2554.4,5.93636814]
[1750417105297,0.36678625,2554.7,2554.4,5.93636814]
[1750417105500,8.39758808,2554.8,2554.4,5.93636814]
[1750417105699,0.36671047,2554.7,2554.4,5.93636814]
[1750417105889,8.39758808,2554.8,2554.4,5.93636814]
[1750417106077,0.6,2554.7,2554.4,5.40000588]
[1750417107598,0.6,2554.7,2554.5,3.9537935]
[1750417107801,0.6,2554.7,2554.5,3.91465142]
[1750417107996,0.6,2554.7,2554.5,3.9537935]
[1750417109700,0.6,2554.7,2554.5,3.91465142]
[1750417110003,0.6,2554.7,2554.5,4.84611463]
[1750417111405,0.6,2554.7,2554.5,3.91465142]
[1750417113013,0.6,2554.7,2554.4,5.39992071]
[1750417113522,0.6,2554.7,2554.5,3.91465269]
[1750417115011,0.6,2554.7,2554.6,3.91450716]
[1750417116311,0.6,2554.7,2554.6,4.67690716]
[1750417116480,4.48334951,2554.8,2554.6,5.60664759]
[1750417117625,4.48334951,2554.8,2554.7,3.91435393]
[1750417117787,4.84998033,2554.8,2554.7,3.91435393]
[1750417118121,4.84998134,2554.8,2554.7,3.91435393]
[1750417118594,4.84998134,2554.8,2554.6,5.60658472]
[1750417118803,4.48334951,2554.8,2554.6,4.67684429]
[1750417119531,4.48334951,2554.8,2554.6,0.7624]
[1750417119687,4.48334951,2554.8,2554.6,3.91450355]
[1750417120894,4.48334951,2554.8,2554.5,3.9145726]
[1750417121094,4.48334951,2554.8,2554.7,3.91435393]
[1750417121295,4.85002245,2554.8,2554.7,3.91435393]
[1750417121616,4.85007569,2554.8,2554.6,3.91441531]
[1750417121812,4.48334951,2554.8,2554.7,3.91435393]
[1750417122004,4.85007284,2554.8,2554.7,3.91435393]
[1750417123207,4.85007274,2554.8,2554.7,3.91435393]
[1750417123703,4.85009033,2554.8,2554.7,3.91435393]
[1750417124250,4.85008937,2554.8,2554.7,3.91435393]
[1750417124727,4.48334951,2554.8,2554.7,3.91435393]
[1750417125034,4.85008629,2554.8,2554.7,3.91435393]
[1750417125630,4.8502075,2554.8,2554.7,3.91435393]
[1750417126129,4.48334951,2554.8,2554.7,3.91435393]
[1750417126335,4.85020344,2554.8,2554.7,3.91435393]